Cogmind - Beta 10.2 @@@ ROGUE MODE // 2022.02.11 @ 08:56:42 Player: FResh Result: Destroyed by S-43 Plague with Heavy Machine Gun Performance ------------- Evolutions (9) 4500 Regions Visited (14) 2800 Robots Destroyed (127) 635 Value Destroyed (4500) 4500 Prototype IDs (13) 260 Alien Tech Used (0) 0 Bonus (111) 111 TOTAL SCORE: 12806 Bonus ------- High Alert Combat Kills 104 Follower Combat Kills 7 Cogmind --------- Core Integrity 0/1600 Matter 300/300 Energy 29/100 System Corruption 14% Temperature Cool (0) Movement Core (50) Location -1/Command Parts ------- > --- POWER (2) -------- (None) > --- PROPULSION (10) -- (None) > --- UTILITY (11) ----- Advanced Signal Interpreter > --- WEAPON (2) ------- (None) > --- INVENTORY (4) ---- Advanced Sensor Array Advanced Signal Interpreter Heavy Missile Launcher Fusion Bomb Launcher Peak State ------------ > --- POWER ------------ Cooled Fission Core Graviton Reactor > --- PROPULSION ------- Cooled VTOL Module Nuclear Pulse Array Nuclear Pulse Array Nuclear Pulse Array Field Propulsion Array Electron Diverter > --- UTILITY ---------- Medium Storage Unit Large Storage Unit Experimental Sensor Array Advanced Signal Interpreter Centrium Light Armor Plating Hacking Suite Hacking Suite Improved Hacking Suite Improved Hacking Suite Advanced Hacking Suite Improved System Shield > --- WEAPON ----------- Enhanced Nova Cannon Power Sword > --- INVENTORY -------- Particle Reactor Quantum Reactor Cooled VTOL Module Field Propulsion Array Field Propulsion Array Advanced Sensor Array Advanced Signal Interpreter Improved Stasis Canceller Hardened Medium Armor Plating Hacking Suite Heavy Missile Launcher Fusion Bomb Launcher [Rating: 149] Favorites ----------- Power Improved Deuterium Engine Engine Improved Deuterium Engine Power Core Fission Core Reactor Graviton Reactor Propulsion Light Treads Treads Light Treads Leg Carbon-fiber Leg Wheel Compact Wheel Hover Unit Improved Linear Gravjet Flight Unit Cooled VTOL Module Utility High-capacity Storage Unit Device Experimental Sensor Array Storage High-capacity Storage Unit Processor Advanced Signal Interpreter Hackware Hacking Suite Protection Improved Medium Armor Plating Weapon Heavy Assault Rifle Energy Gun Lightning Gun Energy Cannon Enhanced Nova Cannon Ballistic Gun Heavy Assault Rifle Launcher Heavy Missile Launcher Slashing Weapon Power Sword Build | -11 -10 -10 -10 -9 -8 -7 -6 -5 -4 -4 -3 -2 -1 -1 ------- Run | Scr Mat Min Exi Min Mat Fac Fac Fac Fac Arm Res Res Acc Com Slots Evolved 18 | . . . . . 4 2 2 2 2 . 2 2 2 . Power 1 | . . . . . . . . . 1 . . . . . Propulsion 8 | . . . . . 3 1 1 1 1 . . . 1 . Utility 9 | . . . . . 1 1 1 1 . . 2 2 1 . Weapon . | . . . . . . . . . . . . . . . Parts Attached 263 | 3 5 . 1 3 36 49 57 35 14 22 16 5 14 3 Power 24 | . 1 . . . 3 4 1 3 4 5 1 . 1 1 Engine 9 | . 1 . . . 3 4 . 1 . . . . . . Core 12 | . . . . . . . 1 2 4 5 . . . . Reactor 3 | . . . . . . . . . . . 1 . 1 1 Propulsion 102 | 2 . . 1 1 14 21 21 15 3 12 3 1 7 1 Treads 31 | 1 . . . . 8 13 8 1 . . . . . . Leg 10 | . . . . . . . 8 2 . . . . . . Wheel 20 | 1 . . 1 1 5 7 5 . . . . . . . Hover 10 | . . . . . . 1 . 1 2 6 . . . . Flight 31 | . . . . . 1 . . 11 1 6 3 1 7 1 Utility 72 | 1 2 . . . 6 12 16 10 3 4 10 3 4 1 Device 28 | . . . . . 4 6 7 4 . 1 5 . 1 . Storage 7 | 1 2 . . . . . . 2 . . 1 . . 1 Processor 3 | . . . . . . . 1 1 . . . . 1 . Hackware 11 | . . . . . 1 1 . 1 3 2 . 2 1 . Protection 23 | . . . . . 1 5 8 2 . 1 4 1 1 . Artifact . | . . . . . . . . . . . . . . . Weapon 65 | . 2 . . 2 13 12 19 7 4 1 2 1 2 . Energy Gun 6 | . . . . . 1 3 2 . . . . . . . Energy Cannon 2 | . . . . . . . . . . . . 1 1 . Ballistic Gun 32 | . 2 . . 1 9 6 10 4 . . . . . . Ballistic Cannon . | . . . . . . . . . . . . . . . Launcher 6 | . . . . 1 3 . 1 . . . 1 . . . Special Weapon . | . . . . . . . . . . . . . . . Impact Weapon . | . . . . . . . . . . . . . . . Slashing Weapon 19 | . . . . . . 3 6 3 4 1 1 . 1 . Piercing Weapon . | . . . . . . . . . . . . . . . Special Melee Weapon . | . . . . . . . . . . . . . . . Unidentified Prototypes 11 | . . . . . 3 1 . . 1 1 4 . 1 . Parts Lost 104 | . . . . . 17 7 19 20 1 5 5 1 5 24 Power 6 | . . . . . 1 . . 1 . . . . 1 3 Propulsion 55 | . . . . . 8 4 12 14 1 3 2 1 3 7 Utility 26 | . . . . . 3 1 3 2 . 2 2 . . 13 Weapon 17 | . . . . . 5 2 4 3 . . 1 . 1 1 Highest Loss Streak 28 | . . . . . 7 3 9 9 1 2 3 1 4 28 Average Slot Usage (%) 94 | . 100 100 100 100 94 99 98 85 92 77 79 85 83 60 Engine 5 | . 14 14 14 14 8 7 1 1 2 . . . . . Core 2 | . . . . . . . 4 3 7 8 5 4 4 . Treads 19 | . 14 14 14 14 24 36 26 11 . . . . . . Leg 1 | . . . . . . . 6 3 . . . . . . Wheel 9 | . 14 14 14 14 18 8 12 6 . . . . . . Hover 1 | . . . . . . . . . 8 14 . . . . Flight 6 | . . . . . . . . 14 35 22 27 26 23 16 Device 3 | . . . . . 2 1 4 4 10 6 4 3 3 3 Storage 15 | . 28 28 28 28 18 15 13 9 5 5 8 8 8 5 Processor 2 | . . . . . . . 6 5 6 5 4 4 7 4 Hackware 6 | . . . . . 1 6 6 8 8 8 14 20 20 18 Protection 2 | . . . . . 2 5 1 1 . . 3 4 4 4 Ballistic Gun 12 | . 21 28 28 27 17 12 10 5 . . . . . . Slashing Weapon 1 | . . . . . . . 1 2 4 4 1 3 3 3 Naked Turns . | . . . . . . . . . . . . . . . Heaviest Build 91 | 15 75 75 75 75 82 89 86 91 36 55 69 77 76 69 Greatest Support 143 | 20 16 16 16 20 42 132 143 42 37 76 79 79 101 101 Greatest Overweight (x) 25 | . 4 4 4 4 5 5 5 25 1 2 1 . . . Average Overweight (x) . | . 1 4 4 3 1 1 1 1 . . . . . . Largest Inventory Capacity 30 | 8 20 20 20 20 20 20 20 30 10 10 14 14 14 14 Average Capacity 17 | 6 11 20 20 20 20 20 20 17 10 10 13 14 13 12 Most Carried 20 | 6 13 20 20 20 20 20 20 20 10 10 14 14 14 10 Average Carried 16 | 6 9 17 19 20 17 19 19 16 9 9 11 13 12 7 Final Capacity 20 | 8 20 20 20 20 20 20 20 10 10 10 14 14 10 4 Final Carried 20 | 6 13 20 20 20 20 20 20 9 10 8 14 13 10 4 Class Distribution -------------------- 51% | Hauler-Mutant 22% | Scavenger-Mutant 9% | Hacker-Sprinter 4% | Mutant 3% | Wizard-Scout Dominant Class ---------------- Mutant | -10/Materials Hauler-Mutant | -10/Mines Hauler-Mutant | -10/Exiles Hauler-Mutant | -9/Mines Hauler-Mutant | -8/Materials Hauler-Mutant | -7/Factory Scavenger-Mutant | -6/Factory Scavenger-Mutant | -5/Factory Hacker-Sprinter | -4/Factory Sprinter | -4/Armory Hacker-Sprinter | -3/Research Wizard-Sprinter | -2/Research Wizard-Scout | -1/Access Hacker-Sprinter | -1/Command Resources | -11 -10 -10 -10 -9 -8 -7 -6 -5 -4 -4 -3 -2 -1 -1 ----------- Run | Scr Mat Min Exi Min Mat Fac Fac Fac Fac Arm Res Res Acc Com Matter Collected 5134 | 230 164 18 . 142 987 999 1107 539 156 130 559 . 95 8 Remotely 147 | . . . . . 147 . . . . . . . . . Salvage Created 5591 | 60 343 10 . 164 1381 1227 1295 476 117 79 233 . 110 96 Parts 316 | 1 21 3 . 14 81 68 68 25 3 8 4 . 11 9 Haulers Intercepted 5 | . . . . . 1 2 1 . . . 1 . . . Recyclers Shooed 6 | . 1 . . . . . 5 . . . . . . . Parts Field Recycled . | . . . . . . . . . . . . . . . Retrieved Matter . | . . . . . . . . . . . . . . . Parts Self-Destructed . | . . . . . . . . . . . . . . . Prevented . | . . . . . . . . . . . . . . . Kills | -11 -10 -10 -10 -9 -8 -7 -6 -5 -4 -4 -3 -2 -1 -1 ------- Run | Scr Mat Min Exi Min Mat Fac Fac Fac Fac Arm Res Res Acc Com Combat Hostiles Destroyed 94 | . 8 1 . 9 26 23 15 8 . 2 . . . 2 Melee 4 | . . . . . . . . . . 2 . . . 2 Guns 80 | . 8 1 . 7 20 21 15 8 . . . . . . AOE 9 | . . . . 2 6 1 . . . . . . . . Classes Destroyed 13 | 1 4 . . . 6 1 . . . 1 . . . . Worker 3 | . 1 . . . 1 . 1 . . . . . . . Builder 3 | . . . . . 2 . 1 . . . . . . . Hauler 5 | . . . . . 1 2 1 . . . 1 . . . Recycler 9 | 1 1 . . . 2 . 2 1 1 . 1 . . . Operator 2 | . . . . . 1 . 1 . . . . . . . Watcher 11 | . 2 . . . 3 1 1 1 . . . . 3 . Swarmer 27 | . 6 1 . 6 4 4 . 5 . . . . . 1 Saboteur 1 | . . . . . . . . . . 1 . . . . Grunt 31 | . 2 . . 3 9 10 6 1 . . . . . . Duelist 2 | . . . . . 2 . . . . . . . . . Sentry 14 | . . . . . 9 4 1 . . . . . . . Hunter 7 | . . . . . 2 1 4 . . . . . . . Programmer 12 | . . . . . . 4 4 2 . 1 . . . 1 Best Kill Streak 7 | 1 5 1 . 4 7 5 6 3 1 2 2 . 2 2 Combat Bots Only 6 | . 5 1 . 4 6 5 3 3 . 2 . . . 2 Max Kills in Single Turn 3 | 1 2 1 . 1 3 2 1 1 1 1 1 . 1 1 Gunslinging 1 | . 1 . . . . 1 . . . . . . . . Exploded 3 | . . . . 1 3 1 . . . . . . . . Melee 1 | . . . . . . . . . . 1 . . . 1 Uniques/NPCs Destroyed . | . . . . . . . . . . . . . . . Combat | -11 -10 -10 -10 -9 -8 -7 -6 -5 -4 -4 -3 -2 -1 -1 -------- Run | Scr Mat Min Exi Min Mat Fac Fac Fac Fac Arm Res Res Acc Com Damage Taken 15736 | 22 296 44 . 246 2388 1916 2922 1955 70 822 519 257 1037 3242 Core 3021 | . 74 16 . 45 381 127 274 201 . 230 61 . 162 1450 Absorbed by Shields 60 | . . . . . . . . . . 47 . 13 . . Core Remaining (%) 75 | 100 . . . 46 30 81 67 79 . 80 95 100 . . Volleys Fired 403 | 8 26 3 . 15 116 77 92 43 . . 11 7 5 . Largest 2 | 1 2 2 . 2 2 2 2 2 . . 1 1 1 . Hottest 120 | 40 63 46 . 46 92 110 80 58 . . 39 120 120 . Shots Fired 737 | 8 52 6 . 27 224 154 158 85 . . 11 7 5 . Gun 703 | 8 52 6 . 24 218 154 156 85 . . . . . . Cannon 12 | . . . . . . . . . . . . 7 5 . Launcher 22 | . . . . 3 6 . 2 . . . 11 . . . Special . | . . . . . . . . . . . . . . . Kinetic 650 | . 38 6 . 24 212 139 146 85 . . . . . . Thermal 18 | . . . . . 6 . . . . . . 7 5 . Explosive 22 | . . . . 3 6 . 2 . . . 11 . . . Electromagnetic 47 | 8 14 . . . . 15 10 . . . . . . . Robot Hit Streak 18 | 7 9 1 . 6 18 13 14 6 . . . . . . Robot Miss Streak 8 | 1 3 1 . 3 4 6 5 8 . . . . . . Penetration Max 1 | . . . . . . . 1 1 . . . . . . Secondary Targets 9 | . 1 . . . 2 3 1 2 . . . . . . Max Gunslinging Chain 1 | . 1 . . . 1 1 1 1 . . . . . . Shots Hit Robots 571 | 7 27 3 . 14 168 132 142 57 3 7 2 . 3 6 Core Hits 340 | 2 15 1 . 11 77 86 109 24 1 3 4 . 3 4 Critical Hits 2 | . 1 . . . . 1 . . . . . . . . Critical Kills 1 | . . . . . . 1 . . . . . . . . Critical Parts Destroyed 1 | . 1 . . . . . . . . . . . . . Melee Attacks 189 | . . . . . . 10 30 28 36 19 9 13 30 14 Impact . | . . . . . . . . . . . . . . . Slashing 189 | . . . . . . 10 30 28 36 19 9 13 30 14 Piercing . | . . . . . . . . . . . . . . . Sneak Attacks 7 | . . . . . . . 2 1 2 . 2 . . . Combat Hostiles . | . . . . . . . . . . . . . . . Follow-up Attacks . | . . . . . . . . . . . . . . . Damage Inflicted 12491 | 112 415 29 . 388 2908 2403 3440 1474 315 275 331 . 161 240 Guns 9310 | 83 384 29 . 167 2276 2310 2946 1115 . . . . . . Cannons . | . . . . . . . . . . . . . . . Explosions 1143 | 29 31 . . 221 632 93 56 . . . 81 . . . Melee 2037 | . . . . . . . 438 359 315 275 250 . 161 239 Ramming 1 | . . . . . . . . . . . . . . 1 Kinetic 8635 | . 261 29 . 167 2201 2072 2790 1115 . . . . . . Thermal 221 | 29 31 . . . 75 30 56 . . . . . . . Explosive 997 | . . . . 221 632 63 . . . . 81 . . . Electromagnetic 600 | 83 123 . . . . 238 156 . . . . . . . Impact . | . . . . . . . . . . . . . . . Slashing 2037 | . . . . . . . 438 359 315 275 250 . 161 239 Piercing . | . . . . . . . . . . . . . . . Highest Corruption 14 | . . . . . . 1 2 8 . 2 1 2 . 14 Average Corruption 2 | . . . . . . 1 1 6 . 1 1 1 . 5 Corruption Purged . | . . . . . . . . . . . . . . . Effects 53 | . . . . . . 9 9 29 . 3 . . . 3 Message Errors 16 | . . . . . . 4 6 5 . . . . . 1 Matter Fused 6 | . . . . . . . . 5 . . . . . 1 Heat Flow Errors 6 | . . . . . . . 1 4 . 1 . . . . Energy Discharges 3 | . . . . . . 2 . 1 . . . . . . Data Loss (minor) 7 | . . . . . . 2 1 2 . 2 . . . . Misdirections 1 | . . . . . . . . . . . . . . 1 Targeting Errors 13 | . . . . . . 1 1 11 . . . . . . Weapon Failures 1 | . . . . . . . . 1 . . . . . . Overload Shots . | . . . . . . . . . . . . . . . Overflow Damage 363 | . . . . . 9 21 107 53 153 6 . . . 14 Projectiles . | . . . . . . . . . . . . . . . Explosions 30 | . . . . . 9 21 . . . . . . . . Melee 333 | . . . . . . . 107 53 153 6 . . . 14 Knockbacks . | . . . . . . . . . . . . . . . Impact . | . . . . . . . . . . . . . . . Kinetic . | . . . . . . . . . . . . . . . Secondary . | . . . . . . . . . . . . . . . Self-Inflicted Damage 245 | 22 . . . 16 13 132 . . . . 62 . . . Shots 10 | 1 . . . 2 2 2 . . . . 3 . . . Rammed 1 | . . . . . . . . . . . . . . 1 Targets Rammed 1 | . . . . . . . . . . . . . . 1 Kicked . | . . . . . . . . . . . . . . . Crushed . | . . . . . . . . . . . . . . . Highest Temperature 249 | 20 26 . . 10 134 156 210 170 10 177 106 232 249 225 Average Temperature 46 | 14 8 . . 4 38 25 92 68 3 47 30 67 85 131 Received Heat Transfer 2202 | . 75 . . 54 612 501 594 123 9 63 81 9 36 45 Effects 1 | . . . . . . . . . . . . . . 1 Energy Bleed 1 | . . . . . . . . . . . . . . 1 Siege Activations . | . . . . . . . . . . . . . . . Robots Corrupted 1 | . . . . . . 1 . . . . . . . . Combat Hostiles 1 | . . . . . . 1 . . . . . . . . Parts Fried 3 | . 1 . . . . 1 1 . . . . . . . Impact Corruptions . | . . . . . . . . . . . . . . . Robots Melted . | . . . . . . . . . . . . . . . Combat Hostiles . | . . . . . . . . . . . . . . . Parts Melted . | . . . . . . . . . . . . . . . Heat Transferred 298 | 50 50 . . . 148 . 50 . . . . . . . Parts Sabotaged 9 | . . . . . . . . . . 9 . . . . Parts Stolen . | . . . . . . . . . . . . . . . Parts Stripped . | . . . . . . . . . . . . . . . Power Chain Reactions 4 | 1 1 . . . . 1 1 . . . . . . . Missiles Intercepted . | . . . . . . . . . . . . . . . Alert | -11 -10 -10 -10 -9 -8 -7 -6 -5 -4 -4 -3 -2 -1 -1 ------- Run | Scr Mat Min Exi Min Mat Fac Fac Fac Fac Arm Res Res Acc Com Peak Influence 833 | 5 282 109 . 240 547 779 448 138 245 442 833 540 512 429 Initial 420 | . 3 41 . . 93 135 381 125 34 69 231 420 317 227 Average 225 | 2 91 42 . 122 330 214 255 85 107 240 573 417 378 307 Maximum Alert Level 3 | . 1 . . 1 2 3 2 . 1 2 3 2 2 2 Low Security (%) 47 | 100 92 100 . 88 9 50 24 100 95 39 . . . . Level 1 40 | . 7 . . 11 61 46 70 . 4 54 23 34 67 89 Level 2 9 | . . . . . 28 . 5 . . 6 36 65 32 10 Level 3 2 | . . . . . . 3 . . . . 40 . . . Level 4 . | . . . . . . . . . . . . . . . Level 5 . | . . . . . . . . . . . . . . . High Security . | . . . . . . . . . . . . . . . Max Security . | . . . . . . . . . . . . . . . Squads Dispatched 37 | . . . . . 5 9 13 4 2 1 1 . 2 . Investigation 9 | . . . . . . 3 3 . 1 1 1 . . . Extermination 11 | . . . . . . 4 4 1 1 . . . 1 . Reinforcement 8 | . . . . . 2 2 3 . . . . . 1 . Assault . | . . . . . . . . . . . . . . . Garrison 9 | . . . . . 3 . 3 3 . . . . . . Intercept . | . . . . . . . . . . . . . . . Construction Impeded 1 | . . . . . . . 1 . . . . . . . Haulers Reinforced 2 | . . . . . . 1 1 . . . . . . . Stealth | -11 -10 -10 -10 -9 -8 -7 -6 -5 -4 -4 -3 -2 -1 -1 --------- Run | Scr Mat Min Exi Min Mat Fac Fac Fac Fac Arm Res Res Acc Com Distress Signals 14 | . . . . . 4 . . 1 3 1 3 1 1 . Communications Jammed . | . . . . . . . . . . . . . . . Distress Signals . | . . . . . . . . . . . . . . . Times Spotted 341 | . 15 2 . 10 48 33 25 14 21 32 31 12 22 76 Peak Tracking Total 74 | . 4 2 . 4 7 5 5 5 13 11 14 6 9 74 Tactical Retreats 47 | . 1 1 . 1 4 3 3 3 5 7 8 4 4 3 Traps | -11 -10 -10 -10 -9 -8 -7 -6 -5 -4 -4 -3 -2 -1 -1 ------- Run | Scr Mat Min Exi Min Mat Fac Fac Fac Fac Arm Res Res Acc Com Traps Triggered 8 | . . . . . . 1 2 1 1 2 . 1 . . Indirectly . | . . . . . . . . . . . . . . . Trap Hack Attempts . | . . . . . . . . . . . . . . . Triggered . | . . . . . . . . . . . . . . . Disarmed . | . . . . . . . . . . . . . . . Reprogrammed . | . . . . . . . . . . . . . . . Reused . | . . . . . . . . . . . . . . . Traps Extracted . | . . . . . . . . . . . . . . . Installed . | . . . . . . . . . . . . . . . Triggered . | . . . . . . . . . . . . . . . Machines | -11 -10 -10 -10 -9 -8 -7 -6 -5 -4 -4 -3 -2 -1 -1 ---------- Run | Scr Mat Min Exi Min Mat Fac Fac Fac Fac Arm Res Res Acc Com Machines Disabled 12 | . 1 . . 1 2 1 1 . 1 . 1 . 4 . Max in Single Turn 1 | . 1 . . 1 1 1 1 . 1 . 1 . 1 . Machines Sabotaged . | . . . . . . . . . . . . . . . Garrisons Compromised . | . . . . . . . . . . . . . . . Overloaded Fab Kills . | . . . . . . . . . . . . . . . Fab Network Shutdowns 1 | . . . . . . 1 . . . . . . . . Hacking | -11 -10 -10 -10 -9 -8 -7 -6 -5 -4 -4 -3 -2 -1 -1 --------- Run | Scr Mat Min Exi Min Mat Fac Fac Fac Fac Arm Res Res Acc Com Machines Accessed 55 | . 2 . . . 6 5 8 3 11 6 5 2 7 . Terminals 35 | . 2 . . . 5 2 4 1 8 5 1 1 6 . Fabricators 14 | . . . . . . 2 4 2 2 1 3 . . . Repair Stations . | . . . . . . . . . . . . . . . Recycling Units 1 | . . . . . . . . . . . . . 1 . Scanalyzers 5 | . . . . . 1 1 . . 1 . 1 1 . . Garrison Access . | . . . . . . . . . . . . . . . Total Hacks 134 | . 5 . . . 13 12 17 5 27 12 15 6 22 . Successful 76 | . 3 . . . 8 7 6 4 11 9 9 6 13 . Failed 58 | . 2 . . . 5 5 11 1 16 3 6 . 9 . Catastrophic 12 | . . . . . 1 1 2 1 5 . 2 . . . Database Lockouts . | . . . . . . . . . . . . . . . Manual 41 | . 2 . . . 5 . 4 1 9 3 . 3 14 . Terminals 86 | . 5 . . . 10 4 7 1 20 9 6 4 20 . Fabricators 34 | . . . . . . 5 10 4 6 3 6 . . . Repair Stations . | . . . . . . . . . . . . . . . Recycling Units 2 | . . . . . . . . . . . . . 2 . Scanalyzers 12 | . . . . . 3 3 . . 1 . 3 2 . . Garrison Access . | . . . . . . . . . . . . . . . Terminal Hacks 38 | . 2 . . . 6 1 4 . 6 6 3 3 7 . Record 12 | . . . . . . 1 2 . 2 3 1 . 3 . Part Schematic 3 | . . . . . . . 1 . 2 . . . . . Level Access Points 2 | . . . . . . . . . . 1 . 1 . . Branch Access Points 3 | . . . . . . . . . . 1 . 1 1 . Fabricator Index 3 | . . . . . . . 1 . 1 . . . 1 . Alert Level 1 | . . . . . 1 . . . . . . . . . Unreport Threat 4 | . . . . . 2 . . . . . . 1 1 . Security Status 1 | . . . . . 1 . . . . . . . . . Transport Status 1 | . 1 . . . . . . . . . . . . . Recall Extermination 1 | . . . . . . . . . . . . . 1 . Registered Components 4 | . . . . . 1 . . . 1 1 1 . . . Zone Layout 3 | . 1 . . . 1 . . . . . 1 . . . Fabricator Hacks 19 | . . . . . . 4 2 4 4 2 3 . . . Load Schematic 11 | . . . . . . 2 2 2 2 1 2 . . . Build 8 | . . . . . . 2 . 2 2 1 1 . . . Repair Station Hacks . | . . . . . . . . . . . . . . . Recycling Unit Hacks 2 | . . . . . . . . . . . . . 2 . Retrieve Matter 1 | . . . . . . . . . . . . . 1 . Retrieve Components 1 | . . . . . . . . . . . . . 1 . Scanalyzer 9 | . . . . . 1 2 . . 1 . 3 2 . . Insert Component 6 | . . . . . 1 1 . . 1 . 2 1 . . Analyze 3 | . . . . . . 1 . . . . 1 1 . . Garrison Access Hacks . | . . . . . . . . . . . . . . . Unauthorized Hacks 8 | . 1 . . . 1 . . . . 1 . 1 4 . Terminals 8 | . 1 . . . 1 . . . . 1 . 1 4 . Assimilate 3 | . . . . . . . . . . . . . 3 . Botnet 5 | . 1 . . . 1 . . . . 1 . 1 1 . Fabricators . | . . . . . . . . . . . . . . . Repair Stations . | . . . . . . . . . . . . . . . Recycling Units . | . . . . . . . . . . . . . . . Scanalyzers . | . . . . . . . . . . . . . . . Garrison Access . | . . . . . . . . . . . . . . . Data Cores Recovered 1 | . . . . . 1 . . . . . . . . . Used 1 | . . . . . 1 . . . . . . . . . Hacking Detections 48 | . 2 . . . 5 4 8 2 10 4 4 2 7 . Full Trace Events 6 | . . . . . . 2 2 . 1 1 . . . . Feedback Events 1 | . . . . . . 1 . . . . . . . . Corruption 1 | . . . . . . 1 . . . . . . . . Feedback Blocked . | . . . . . . . . . . . . . . . Robot Schematics Acquired . | . . . . . . . . . . . . . . . Robots Built . | . . . . . . . . . . . . . . . Matter . | . . . . . . . . . . . . . . . Time . | . . . . . . . . . . . . . . . Total Robot Build Rating . | . . . . . . . . . . . . . . . Part Schematics Acquired 6 | . . . . . . 1 1 . 2 . 1 1 . . Parts Built 8 | . . . . . . 2 . 2 2 1 1 . . . Matter 1698 | . . . . . . 570 . 372 380 186 190 . . . Time 692 | . . . . . . 304 . 198 94 49 47 . . . Total Part Build Rating 31 | . . . . . . 10 . 4 10 2 5 . . . Parts Repaired . | . . . . . . . . . . . . . . . Time . | . . . . . . . . . . . . . . . Parts Recycled . | . . . . . . . . . . . . . . . Recycled Matter . | . . . . . . . . . . . . . . . Retrieved Matter . | . . . . . . . . . . . . . . . Retrieved Components 3 | . . . . . . . . . . . . . 3 . Parts Scanalyzed 3 | . . . . . 1 . . . . . 1 1 . . Part Schematics Acquired 3 | . . . . . . 1 . . . . 1 1 . . Parts Damaged . | . . . . . . . . . . . . . . . Bothacking | -11 -10 -10 -10 -9 -8 -7 -6 -5 -4 -4 -3 -2 -1 -1 ------------ Run | Scr Mat Min Exi Min Mat Fac Fac Fac Fac Arm Res Res Acc Com Used RIF Installer . | . . . . . . . . . . . . . . . Robots Hacked . | . . . . . . . . . . . . . . . Non-combat . | . . . . . . . . . . . . . . . Combat . | . . . . . . . . . . . . . . . Robot Hacks Applied . | . . . . . . . . . . . . . . . Relay Couplers Released . | . . . . . . . . . . . . . . . Robots Rewired . | . . . . . . . . . . . . . . . Allies Hacked . | . . . . . . . . . . . . . . . Hacks Repelled . | . . . . . . . . . . . . . . . Allies | -11 -10 -10 -10 -9 -8 -7 -6 -5 -4 -4 -3 -2 -1 -1 -------- Run | Scr Mat Min Exi Min Mat Fac Fac Fac Fac Arm Res Res Acc Com Total Allies 6 | . . 4 . . . . . . . . . . 2 . Largest Group 3 | . . 3 1 . . . . . . . . . 2 . Highest-Rated Group 88 | . . 40 16 . . . . . . . . . 88 . Highest-Rated Ally 44 | . . 31 16 . . . . . . . . . 44 . Total Orders 3 | . . . 1 . . . . . . . 2 . . . STAY 1 | . . . 1 . . . . . . . . . . . EXPLORE 2 | . . . . . . . . . . . 2 . . . Ally Attacks 2 | . . 2 . . . . . . . . . . . . Total Damage 20 | . . 20 . . . . . . . . . . . . Kills 1 | . . 1 . . . . . . . . . . . . Allies Corrupted . | . . . . . . . . . . . . . . . Allies Melted . | . . . . . . . . . . . . . . . Intel | -11 -10 -10 -10 -9 -8 -7 -6 -5 -4 -4 -3 -2 -1 -1 ------- Run | Scr Mat Min Exi Min Mat Fac Fac Fac Fac Arm Res Res Acc Com Robot Analysis Total . | . . . . . . . . . . . . . . . Derelict Logs Recovered 3 | . . 3 . . . . . . . . . . . . Drone Launches 2 | . . . . . . . . . . . 2 . . . Drone Recoveries . | . . . . . . . . . . . . . . . Exploration | -11 -10 -10 -10 -9 -8 -7 -6 -5 -4 -4 -3 -2 -1 -1 ------------- Run | Scr Mat Min Exi Min Mat Fac Fac Fac Fac Arm Res Res Acc Com Turns Passed 10402 | 61 598 608 431 398 1122 1968 2286 873 582 334 457 170 430 84 Spaces Moved 9420 | 38 428 409 304 224 577 1160 1341 673 952 597 1284 415 872 146 Core 2 | . . . . . . . . 1 . . . . . 1 Treads 787 | . . . . 1 . 421 345 20 . . . . . . Legs 37 | 17 . . . . . . 20 . . . . . . . Wheels 3967 | 21 428 409 304 223 577 739 976 290 . . . . . . Hover 370 | . . . . . . . . . . 370 . . . . Flight 4257 | . . . . . . . . 362 952 227 1284 415 872 145 Fastest Speed 17 | 100 100 140 140 140 103 110 103 17 19 22 23 23 23 24 Average Speed 76 | 108 112 140 140 140 118 134 124 72 19 30 24 23 23 25 Slowest Speed 1300 | 120 140 140 140 220 150 180 200 1300 95 200 100 23 27 50 Overloaded Moves . | . . . . . . . . . . . . . . . Propulsion Burnouts . | . . . . . . . . . . . . . . . Robots Hopped 38 | . . . . . . . . 4 12 3 7 3 4 5 Cave-ins Triggered . | . . . . . . . . . . . . . . . Exploration Rate (%) 41 | 4 74 85 72 53 71 30 33 20 40 46 47 16 27 10 Regions Visited 14 Branch Regions 5 Pre-discovered Areas . | . . . . . . . . . . . . . . . Known Exits Taken 8 | . . . 1 . . . 1 1 1 1 1 1 1 . Unknown Exits Taken 6 | 1 1 1 . 1 1 1 . . . . . . . . Scrap Searched 1 | . . 1 . . . . . . . . . . . . Spaces Dug 305 | . . . . . . 10 55 17 32 6 139 20 22 4 Terrain Destroyed 432 | 7 4 . . 31 33 36 56 20 32 6 161 20 22 4 Melee 132 | . . . . . . 10 22 17 32 6 6 13 22 4 Projectile 11 | . . . . . . . 1 3 . . . 7 . . AOE 289 | 7 4 . . 31 33 26 33 . . . 155 . . . Terrain Rammed . | . . . . . . . . . . . . . . . Walls Destroyed . | . . . . . . . . . . . . . . . Machines Disabled . | . . . . . . . . . . . . . . . Actions | -11 -10 -10 -10 -9 -8 -7 -6 -5 -4 -4 -3 -2 -1 -1 --------- Run | Scr Mat Min Exi Min Mat Fac Fac Fac Fac Arm Res Res Acc Com Total 11524 | 48 494 438 310 280 800 1434 1749 924 1286 710 1391 460 1038 162 Wait 1005 | . 15 20 . 36 41 66 201 135 271 44 59 5 110 2 Move 9338 | 37 427 408 303 223 576 1159 1340 665 930 590 1269 408 863 140 Hop 30 | . . . . . . . . 3 9 3 7 3 4 1 Pick Up 132 | . 12 7 3 1 19 35 19 3 10 3 12 1 7 . Fast Attach 73 | 1 1 . . 1 10 4 12 10 7 16 8 1 2 . Attach 86 | . . . . . 13 12 15 17 5 4 7 3 8 2 Detach 17 | . . . . . 1 . . 6 5 1 . 3 1 . Swap 105 | 2 4 . 1 2 13 33 30 8 2 2 2 1 4 1 Drop 111 | . 9 . 3 2 11 38 10 6 11 9 7 1 4 . Fire 403 | 8 26 3 . 15 116 77 92 43 . . 11 7 5 . Melee 189 | . . . . . . 10 30 28 36 19 9 13 30 14 Ram 2 | . . . . . . . . . . . . . . 2 Kick . | . . . . . . . . . . . . . . . Crush . | . . . . . . . . . . . . . . . Escape Stasis 33 | . . . . . . . . . . 19 . 14 . . Rewire . | . . . . . . . . . . . . . . . Trap . | . . . . . . . . . . . . . . . Miscellaneous . | . . . . . . . . . . . . . . . Route ------- -11/Scrapyard -10/Materials (discovered 4 exits: [*Mat x2] / [*Min x2]) -10/Mines -10/Exiles (discovered 2 exits: *Min x2) -9/Mines -8/Materials -7/Factory (discovered 2 exits: *Fac x2) -6/Factory -5/Factory -4/Factory (discovered 2 exits: [*Upp] / *Arm) -4/Armory (discovered 2 exits: *Res x2) -3/Research -2/Research (discovered 5 exits: *Acc x3 / Qua x2) -1/Access -1/Command History --------- Turn | Location | Event 13 | -11/Scrapyard | Discovered new exit (range 3) 62 | -11/Scrapyard | Entered Materials 194 | -10/Materials | Discovered new exit (range 6) 247 | -10/Materials | Discovered new exit (range 13) 304 | -10/Materials | Build established: Mutant 356 | -10/Materials | Discovered new exit (range 5) 636 | -10/Materials | Discovered new exit (range 5) 660 | -10/Materials | Entered Mines 756 | -10/Mines | Build established: Hauler-Mutant 780 | -10/Mines | Assembled infested the area 780 | -10/Mines | Found a damaged Exp. Sensor Array with a note attached 783 | -10/Mines | Found Prototype Device 799 | -10/Mines | Received a Mining Laser from a helpful Derelict 847 | -10/Mines | Learned Materials garrison access intel 855 | -10/Mines | Received a Rocket Launcher from a helpful Derelict 998 | -10/Mines | Learned Materials trap positions 1182 | -10/Mines | Assisted by bots powering up and referring to "LRC-V3" 1262 | -10/Mines | Discovered new exit (range 5) 1268 | -10/Mines | Entered Exiles 1268 | -10/Exiles | Accompanied by 1 ally 1269 | -10/Exiles | Identified exit to Mines 1308 | -10/Exiles | Met 8R-AWN 1327 | -10/Exiles | Met EX-HEX 1414 | -10/Exiles | Met EX-DEC 1441 | -10/Exiles | Visited The Gauntlet 1699 | -10/Exiles | Entered Mines 1725 | -9/Mines | Met a Derelict bent on vengeance 2054 | -9/Mines | Core integrity fell below 50% 2084 | -9/Mines | Discovered new exit (range 8) 2097 | -9/Mines | Entered Materials 2097 | -8/Materials | Evolved 4 slots: Propulsion x3, Utility x1 2098 | -8/Materials | Loaded intel: 20 trap records 2099 | -8/Materials | Loaded intel: 1 garrison access location 2101 | -8/Materials | Identified Exp. Sensor Array 2325 | -8/Materials | Garrison activated, responded to threat 2504 | -8/Materials | Lost 6 parts (4n1u1w) 2621 | -8/Materials | Lost 7 parts (1p2n1u3w) 2762 | -8/Materials | Core integrity fell below 50% 3213 | -8/Materials | Discovered new exit (range 5) 3219 | -8/Materials | Entered Factory 3219 | -7/Factory | Evolved 2 slots: Propulsion x1, Utility x1 4024 | -7/Factory | Lost 3 parts (1n1u1w) 4469 | -7/Factory | Discovered new exit (range 16) 4991 | -7/Factory | Fabricated Exp. Sensor Array (x1) 5032 | -7/Factory | Discovered new exit (range 2) 5118 | -7/Factory | Local fabrication network quarantined 5132 | -7/Factory | Fabricated Exp. Sensor Array? 5187 | -7/Factory | Entered another Factory area 5187 | -6/Factory | Evolved 2 slots: Propulsion x1, Utility x1 5458 | -6/Factory | Build established: Scavenger-Mutant 5857 | -6/Factory | Lost 9 parts (5n1u3w) 5889 | -6/Factory | Build established: Hauler-Mutant 6597 | -6/Factory | Lost 4 parts (3n1u) 6806 | -6/Factory | Lost 6 parts (4n1u1w) 6843 | -6/Factory | Build established: Scavenger-Mutant 6857 | -6/Factory | Garrison activated, responded to threat 7451 | -6/Factory | Discovered new exit (range 8) 7458 | -6/Factory | Identified exit to Factory 7473 | -6/Factory | Entered another Factory area 7473 | -5/Factory | Evolved 2 slots: Propulsion x1, Utility x1 7538 | -5/Factory | Spotted B-75 Beast 7777 | -5/Factory | Fabricated Imp. Flight Unit? 7812 | -5/Factory | Garrison activated, responded to threat 7998 | -5/Factory | Lost 4 parts (2n1u1w) 8078 | -5/Factory | Lost 9 parts (1p5n1u2w) 8343 | -5/Factory | Fabricated Imp. Flight Unit? 8345 | -5/Factory | Discovered new exit (range 5) 8346 | -5/Factory | Identified exit to Factory 8346 | -5/Factory | Entered another Factory area 8346 | -4/Factory | Evolved 2 slots: Power x1, Propulsion x1 8786 | -4/Factory | Fabricated Imp. Hacking Suite (x1) 8835 | -4/Factory | Fabricated Imp. Hacking Suite (x1) 8889 | -4/Factory | Discovered new exit (range 5) 8926 | -4/Factory | Discovered new exit (range 11) 8928 | -4/Factory | Identified exit to Armory 8928 | -4/Factory | Entered Armory 8980 | -4/Armory | Fabricated Imp. Flight Unit? 9212 | -4/Armory | Spotted B-86 Titan 9250 | -4/Armory | Identified exit to Research 9262 | -4/Armory | Entered Research 9262 | -3/Research | Evolved 2 slots: Utility x2 9358 | -3/Research | Fabricated Imp. Hacking Suite (x1) 9480 | -3/Research | Lost 3 parts (1n2u) 9483 | -3/Research | Build established: Hacker-Sprinter 9542 | -3/Research | Found Prototype Device 9543 | -3/Research | Identified Exp. Focal Shield 9605 | -3/Research | Found Fusion Bomb Launcher 9711 | -3/Research | Discovered new exit (range 12) 9719 | -3/Research | Identified exit to Research 9719 | -3/Research | Entered another Research area 9719 | -2/Research | Evolved 2 slots: Utility x2 9747 | -2/Research | Identified exit to Quarantine 9747 | -2/Research | Identified exit to Access 9889 | -2/Research | Entered Access 9889 | -1/Access | Evolved 2 slots: Propulsion x1, Utility x1 9928 | -1/Access | Spotted B-99 Colossus 9949 | -1/Access | Identified exit to Command 10213 | -1/Access | Build established: Wizard-Scout 10308 | -1/Access | Spotted B-99 Colossus 10317 | -1/Access | Spotted B-99 Colossus 10319 | -1/Access | Entered Command 10346 | -1/Command | Spotted M Guard 10346 | -1/Command | Spotted M Guard 10346 | -1/Command | Spotted Combat Programmer 10346 | -1/Command | Spotted Combat Programmer 10390 | -1/Command | Core integrity fell below 50% 10391 | -1/Command | System corruption reached 10% 10401 | -1/Command | Core integrity fell below 20% 10403 | -1/Command | Destroyed by S-43 Plague with Heavy Machine Gun Last Messages --------------- 10399_ Imp. Stasis Canceller crushed and broken. 10399_ Cld. Fission Core crushed and broken. 10399_ Hacking Suite crushed and broken. 10399_ Imp. Hacking Suite destroyed. 10400_ System corrupted: Matter fused (-8). 10401_ Acquired 8 matter. 10401_ Slug penetrates S-43 Plague. 10401_ Cld. VTOL Module destroyed. 10401_ Slug penetrates E-15 Imp. 10401_ E-15 Imp destroyed. 10401_ Slug penetrates H-88 Terminator. 10401_ Penetrated by Slug. 10401_ Slug penetrates E-15 Imp. 10401_ E-15 Imp suffers critical hit. 10401_ E-15 Imp destroyed. 10401_ Penetrated by Slug. 10402_ Slug penetrates S-43 Plague. 10402_ S-43 Plague suffers critical hit. 10402_ S-43 Plague destroyed. 10402_ E-15 Imp destroyed. Map ----- +----------------------------------------------------+ | ?????????????????????????????????????????????????? | | ?????????????????????????????????????????????????? | | ?????????????????????????????????????????????????? | | ?????????????????????????????????????????????????? | | ?????????????????????????????????????????????????? | | ?????????????????????????????????????????????????? | | ?????????????????????????????????????????????????? | | ?????????????????????????????????????????????????? | | ?????????????????????????????????????????????????? | | ?????????????????????????????????????????????????? | | ?????????????????????????????????????????????????? | | ??????????????????????? ???????????????????????? | | ??????????????????????? ???????????????????????? | | ??????????????????????? ???????????????????????? | | ??????????????????????? ???????????????????????? | | ???????????????????????#++???????????????????????? | | ???????????????????????# ???????????????????????? | | ???????????????????????#sg#??????????????????????? | | ???????????????????????#h/#??????????????????????? | | ???????????????????????#!%#??????????????????????? | | ???????????????????????#g/#??????????????????????? | | ???????????????????????#*!#??????????????????????? | | ??????????????????????##=e##?????????????????????? | | ??????????????????????#=h%%#?????????????????????? | | ??????????????????????#*p%%#?????????????????????? | | ??????????????????????#ss@h#?????????????????????? | | ??????????????????????#*%%%#?????????????????????? | | ??????????????????????#hehs#?????????????????????? | | ??????????????????????#%esh#?????????????????????? | | ??????????????????????###h##?###?????????????????? | | ????????????????????????#p#??# #???#?????????????? | | ????????????????????????#p##?# #?? #?????????????? | | ????????????????????????#ps### ### #### #????????? | | ????????????????????????#ps=!* #????????? | | ???????????????????????#[#######"#######?????????? | | ???????????????????????##??????# #?????????????? | | ???????????????????????????????# #?????????????? | | ???????????????????????????????# #?????????????? | | ???????????????????????????????# #?????????????? | | ???????????????????????????????# #?????????????? | | ???????????????????????????????# #?????????????? | | ???????????????????????????????# #?????????????? | | ???????????????????????????????# #?????????????? | | ???????????????????????????????# #?????????????? | | ???????????????????????????????# #?????????????? | | ???????????????????????????????# #?????????????? | | ???????????????????????????????# #?????????????? | | ???????????????????????????????# #?????????????? | | ???????????????????????????????# #?????????????? | | ???????????????????????????????# #?????????????? | +----------------------------------------------------+ Best States ------------- Heat Dissipation 57 Energy Generation 45 Energy Capacity 600 Matter Stores 300 Matter Capacity 300 Sight Range 22 Robot Scan Range 30 Terrain Scan Density 10 Armor Coverage 450 Evasion (%) 66 Recoil Reduction 6 Offensive Hacking 58 Defensive Hacking 12 Item Schematics ----------------- Exp. Sensor Array | -7/Factory | Scanalyzed Imp. Flight Unit | -6/Factory | Hacked Impulse Thruster | -4/Factory | Hacked Imp. Hacking Suite | -4/Factory | Hacked Adv. Hacking Suite | -3/Research | Scanalyzed Nuclear Pulse Array | -2/Research | Scanalyzed Robot Schematics ------------------ None Fabricated ------------ Exp. Sensor Array | x1 | -7/Factory Exp. Sensor Array | x1 | -7/Factory Imp. Flight Unit | x1 | -5/Factory Imp. Flight Unit | x1 | -5/Factory Imp. Hacking Suite | x1 | -4/Factory Imp. Hacking Suite | x1 | -4/Factory Imp. Flight Unit | x1 | -4/Armory Imp. Hacking Suite | x1 | -3/Research Alien Tech Used ----------------- None Achievements -------------- Oh No You Don't! Origins Prolific Hacker root@ Challenges ------------ None Game ------ Seed RelayFieldMaul Manual? 0 Play Time 03:27:47 Cumulative 39.8 hours Start 2022.02.07 @ 19:32:24 End 2022.02.11 @ 08:56:42 Sessions 9 Manual Loads 0 Difficulty Rogue Special Mode None Game No. 21 Rogue 21 Adventurer 0 Explorer 0 Win Type - Total 1 Types 1/0/0/0/0/0/0/0/0 Lore% 39 Gallery% 39 Achievement% 32 Wizard Run 0 Options --------- ASCII 0 Keyboard 0 Movement Mouse Keybinds 0 Fullscreen 2 Font 18/SmallcapsGlow Map View 76x50 Tactical HUD 1 Map Filters NONE Filters NONE Steam 1 RUN: 1bc7a1ba-e5b3-4966-ad5d-51768e1edfa4